bitfinex/quotes_BTCUSD_20240927
["timestamp","ask_amount","ask_price","bid_price","bid_amount"]
[1727456581293,0.000829,66457.0,66456.0,1.29884924]
[1727456581774,0.1,66471.0,66458.0,0.1492]
[1727456582013,0.32653135,66466.0,66465.0,0.2258]
[1727456582266,0.1,66466.0,66465.0,1.119625]
[1727456582767,0.1,66466.0,66465.0,0.96917]
[1727456583259,0.1,66469.0,66466.0,0.150452]
[1727456583483,0.1,66470.0,66467.0,0.74335]
[1727456583729,0.30595288,66473.0,66467.0,0.74335]
[1727456583962,0.000829,66474.0,66470.0,0.2177]
[1727456584184,0.000829,66474.0,66473.0,0.54048124]
[1727456584428,0.000829,66474.0,66473.0,1.13335424]
[1727456584645,0.000829,66474.0,66473.0,1.28379124]
[1727456585119,0.000829,66474.0,66473.0,1.13335424]
[1727456585358,0.001829,66474.0,66473.0,1.13835424]
[1727456586084,0.152263,66474.0,66473.0,0.88831]
[1727456586773,0.153263,66474.0,66473.0,0.89831]
[1727456587242,0.151263,66474.0,66473.0,0.88331]
[1727456587486,0.151263,66474.0,66473.0,0.88431]
[1727456587702,0.151263,66474.0,66473.0,0.88331]
[1727456588591,0.152263,66474.0,66473.0,0.88831]
[1727456589091,0.152263,66474.0,66473.0,0.89031]
[1727456591215,0.16771233,66474.0,66473.0,0.89031]
[1727456592817,0.152263,66474.0,66473.0,0.89031]
[1727456593052,0.16771858,66474.0,66473.0,0.89031]
[1727456593535,0.01728458,66474.0,66473.0,0.89031]
[1727456593768,0.16771858,66474.0,66473.0,0.89031]
[1727456594208,0.001829,66474.0,66473.0,0.89031]
[1727456594682,0.001829,66474.0,66473.0,1.117547]
[1727456595849,0.001829,66474.0,66473.0,1.115547]
[1727456596077,0.001829,66474.0,66473.0,1.129547]
[1727456596290,0.002829,66474.0,66473.0,1.129547]
[1727456596756,0.001829,66474.0,66473.0,1.124547]
[1727456597000,0.002829,66474.0,66473.0,1.131547]
[1727456597485,0.001829,66474.0,66473.0,1.124547]
[1727456597986,0.002829,66474.0,66473.0,1.134547]
[1727456604199,0.002829,66474.0,66473.0,0.98411]
[1727456604425,0.153263,66474.0,66473.0,0.98411]
[1727456604646,0.153263,66474.0,66473.0,0.76731]
[1727456605578,0.152263,66474.0,66473.0,0.75331]
[1727456605794,0.152263,66474.0,66473.0,0.75831]
[1727456606264,0.151263,66474.0,66473.0,0.74831]
[1727456606501,0.152263,66474.0,66473.0,0.75531]
[1727456606953,0.151263,66474.0,66473.0,0.74831]
[1727456607178,0.152263,66474.0,66473.0,0.75531]
[1727456608128,0.152263,66474.0,66473.0,0.75031]
[1727456608344,0.156263,66474.0,66473.0,0.75031]
[1727456609179,0.155263,66474.0,66473.0,0.74331]
[1727456609417,0.156263,66474.0,66473.0,0.74331]
[1727456609663,0.1611291,66474.0,66473.0,0.74331]
[1727456611639,0.2611291,66474.0,66473.0,0.74331]
[1727456611925,0.32244252,66474.0,66473.0,0.74331]
[1727456612138,0.5066291,66474.0,66473.0,0.74331]
[1727456612350,0.5116291,66474.0,66473.0,0.74331]
[1727456612564,0.5136291,66474.0,66473.0,0.74331]
[1727456612796,0.5226291,66474.0,66473.0,0.74331]
[1727456612977,0.70260483,66474.0,66473.0,0.74331]
[1727456613725,0.70860483,66474.0,66473.0,0.74431]
[1727456614182,0.69860483,66474.0,66473.0,0.74331]
[1727456614401,0.54221677,66474.0,66473.0,0.74331]
[1727456614629,0.55221677,66474.0,66473.0,0.74431]
[1727456614873,0.54221677,66474.0,66473.0,0.74331]
[1727456615111,0.55421677,66474.0,66473.0,0.74431]
[1727456615555,0.66524032,66474.0,66473.0,0.74431]
[1727456616021,0.65324032,66474.0,66473.0,0.74331]
[1727456616252,0.67724032,66474.0,66473.0,0.74431]
[1727456616760,0.66724032,66474.0,66473.0,0.74431]
[1727456617234,0.68024032,66474.0,66473.0,0.74431]
[1727456617615,0.65665265,66474.0,66473.0,0.74431]
[1727456619108,0.65465265,66474.0,66473.0,0.74431]
[1727456619315,0.5436291,66474.0,66473.0,0.74431]
[1727456619738,0.5456291,66474.0,66473.0,0.74431]
[1727456620846,0.5456291,66474.0,66473.0,0.73073993]
[1727456621974,0.5456291,66474.0,66473.0,0.696633]
[1727456622185,0.70201716,66474.0,66473.0,0.50042388]
[1727456622395,0.70201716,66474.0,66473.0,0.46681781]
[1727456623042,0.70201716,66474.0,66473.0,0.40650381]
[1727456623248,0.68901716,66474.0,66473.0,0.31603281]
[1727456623685,0.68901716,66474.0,66473.0,0.25712209]
[1727456623895,0.68901716,66474.0,66473.0,0.24954209]
[1727456624100,0.70301716,66474.0,66473.0,0.17523009]
[1727456624318,0.70301716,66474.0,66473.0,0.14407409]
[1727456624538,0.68901716,66474.0,66473.0,0.11391809]
[1727456624740,0.70301716,66474.0,66473.0,0.08376209]
[1727456625165,0.70301716,66474.0,66473.0,0.05360609]
[1727456625400,0.70301716,66474.0,66473.0,9e-08]
[1727456626047,0.15047,66458.0,66457.0,0.001656]
[1727456626270,0.289017,66458.0,66457.0,0.001656]
[1727456627424,0.295017,66458.0,66457.0,0.001656]
[1727456627635,0.29877933,66458.0,66457.0,0.001656]
[1727456628270,0.30677933,66458.0,66457.0,0.001656]
[1727456629189,0.30177933,66458.0,66457.0,0.001656]
[1727456630571,0.298017,66458.0,66457.0,0.001656]
[1727456631760,0.28746969,66458.0,66457.0,0.001656]
[1727456641175,0.28746969,66458.0,66457.0,0.230856]
[1727456642555,0.26446969,66458.0,66457.0,0.230856]
[1727456644354,0.25646969,66458.0,66457.0,0.230856]
[1727456644813,0.25046969,66458.0,66457.0,0.230856]
[1727456645267,0.00499969,66458.0,66457.0,0.230856]
[1727456645504,0.1,66459.0,66458.0,0.2244]
[1727456645941,0.10490463,66459.0,66458.0,0.2244]
[1727456646176,0.22653135,66472.0,66461.0,0.2168]
[1727456646177,0.300889,66470.0,66461.0,0.2168]
[1727456646452,0.00505189,66467.0,66465.0,0.150454]
[1727456646676,0.00505189,66467.0,66463.0,0.300916]
[1727456646677,0.22653135,66472.0,66466.0,0.38914424]
[1727456646916,0.22653135,66472.0,66466.0,0.53959624]
[1727456646917,0.52740935,66472.0,66466.0,0.53959624]
[1727456647138,0.37697035,66472.0,66466.0,0.53959624]
[1727456647384,0.000828,66473.0,66466.0,0.38914424]
[1727456647601,0.000828,66473.0,66468.0,0.1377]
[1727456647602,0.150439,66472.0,66468.0,0.1377]
[1727456647812,0.1,66471.0,66468.0,0.1377]
[1727456648038,0.1,66471.0,66470.0,0.17234424]
[1727456648252,0.1,66471.0,66470.0,0.31274424]
[1727456649177,0.001,66472.0,66471.0,0.0752]
[1727456649395,0.100828,66473.0,66471.0,0.0752]
[1727456649608,0.100828,66473.0,66471.0,0.0742]
[1727456649609,0.250439,66472.0,66471.0,0.0742]
[1727456650250,0.1,66472.0,66471.0,0.0742]
[1727456650677,0.250439,66472.0,66471.0,0.0742]
[1727456651233,0.251439,66472.0,66471.0,0.0742]
[1727456651653,0.251439,66472.0,66471.0,0.52552]
[1727456652734,0.251439,66472.0,66471.0,0.52652]
[1727456653124,0.251439,66472.0,66471.0,0.52552]
[1727456653361,0.001,66472.0,66471.0,0.52552]
[1727456653479,0.152439,66472.0,66471.0,0.52652]
[1727456655952,0.153267,66472.0,66471.0,0.52652]
[1727456656161,0.002828,66472.0,66471.0,0.52652]
[1727456656367,0.002828,66472.0,66471.0,0.67282]
[1727456659360,0.153267,66472.0,66471.0,0.67282]
[1727456659809,0.002828,66472.0,66471.0,0.67282]
[1727456660512,0.153267,66472.0,66471.0,0.67282]
[1727456662081,0.11500342,66472.0,66471.0,0.67282]
[1727456668826,0.11500342,66472.0,66471.0,0.674476]
[1727456669279,0.11563142,66472.0,66471.0,0.453976]
[1727456671760,0.11563142,66472.0,66471.0,0.452976]
[1727456672003,0.11563142,66472.0,66471.0,0.454976]
[1727456672272,0.11663142,66472.0,66471.0,0.454976]
[1727456672483,0.11563142,66472.0,66471.0,0.452976]
[1727456672901,0.11563142,66472.0,66471.0,0.453976]
[1727456679717,0.11563142,66472.0,66471.0,0.686476]
[1727456679960,0.11563142,66472.0,66471.0,0.836917]
[1727456679961,0.000828,66472.0,66471.0,0.836917]
[1727456681527,0.001828,66472.0,66471.0,0.835917]
[1727456681964,0.002828,66472.0,66471.0,0.838917]
[1727456685496,0.15043,66476.0,66475.0,0.17239891]
[1727456685723,0.15043,66476.0,66475.0,0.62369891]
[1727456686372,0.15043,66476.0,66475.0,0.4513]
[1727456686805,0.150428,66477.0,66475.0,0.4513]
[1727456687022,0.15143,66476.0,66475.0,0.4513]
[1727456688566,0.15243,66476.0,66475.0,0.4553]
[1727456688781,0.1523454,66476.0,66475.0,0.4553]
[1727456689245,0.002,66476.0,66475.0,0.77813091]
[1727456689456,0.002,66476.0,66475.0,1.00263091]
[1727456691439,0.002,66476.0,66475.0,1.04727704]
[1727456691708,0.002,66476.0,66475.0,1.00263091]
[1727456692799,0.002829,66476.0,66475.0,1.00263091]
[1727456694546,0.002829,66476.0,66475.0,0.94330195]
[1727456694730,0.002829,66476.0,66475.0,0.98794808]
[1727456695936,0.002829,66476.0,66475.0,0.94330195]
[1727456696152,0.001829,66476.0,66475.0,0.93930195]
[1727456696375,0.001829,66476.0,66475.0,1.06547785]
[1727456696583,0.001829,66476.0,66475.0,0.99850865]
[1727456696796,0.000829,66476.0,66475.0,0.99850865]
[1727456697016,0.001829,66476.0,66475.0,0.99850865]
[1727456697225,0.001829,66476.0,66475.0,1.06547785]
[1727456697432,0.22618935,66481.0,66480.0,0.150421]
[1727456697649,0.22618935,66481.0,66480.0,0.85505765]
[1727456697862,0.00101058,66485.0,66483.0,0.150414]
[1727456698094,0.00101058,66485.0,66484.0,0.62351665]
[1727456698538,0.00101058,66485.0,66484.0,0.77141665]
[1727456699210,0.01,66509.0,66484.0,0.77141665]
[1727456699428,0.300808,66488.0,66485.0,0.00300787]
[1727456699648,0.300808,66488.0,66486.0,0.299811]
[1727456699874,0.150405,66487.0,66486.0,0.299811]
[1727456700624,0.228605,66487.0,66486.0,0.299811]
[1727456700867,0.33236526,66487.0,66486.0,0.299811]
[1727456701078,0.328605,66487.0,66486.0,0.299811]
[1727456701314,0.329605,66487.0,66486.0,0.299811]
[1727456702991,0.333605,66487.0,66486.0,0.299811]
[1727456703228,0.255405,66487.0,66486.0,0.299811]
[1727456703469,0.259405,66487.0,66486.0,0.299811]
[1727456703716,0.255405,66487.0,66486.0,0.299811]
[1727456703956,0.261405,66487.0,66486.0,0.299811]
[1727456704487,0.256405,66487.0,66486.0,0.299811]
[1727456704723,0.256405,66487.0,66486.0,0.300811]
[1727456704724,0.006,66487.0,66486.0,0.300811]
[1727456704960,0.156405,66487.0,66486.0,0.300811]
[1727456705192,0.150403,66488.0,66486.0,0.299811]
[1727456705425,0.156405,66487.0,66486.0,0.300811]
[1727456705870,0.163405,66487.0,66486.0,0.300811]
[1727456706164,0.157405,66487.0,66486.0,0.299811]
[1727456706422,0.150405,66487.0,66486.0,0.299811]
[1727456707152,0.151405,66487.0,66486.0,0.299811]
[1727456707389,0.151405,66487.0,66486.0,0.304811]
[1727456707630,0.152405,66487.0,66486.0,0.304811]
[1727456708992,0.002,66487.0,66486.0,0.304811]
[1727456709206,0.002,66487.0,66486.0,0.30781876]
[1727456709639,0.002,66487.0,66486.0,0.304811]
[1727456709852,0.152405,66487.0,66486.0,0.304811]
[1727456710074,0.54574439,66487.0,66486.0,0.304811]
[1727456710352,0.62064439,66487.0,66486.0,0.304811]
[1727456710562,0.61964439,66487.0,66486.0,0.299811]
[1727456710782,0.62064439,66487.0,66486.0,0.299811]
[1727456710999,0.62064439,66487.0,66486.0,0.308811]
[1727456711213,0.62164439,66487.0,66486.0,0.308811]
[1727456711432,0.52158165,66487.0,66486.0,0.299811]
[1727456711909,0.52758165,66487.0,66486.0,0.300811]
[1727456712355,0.52158165,66487.0,66486.0,0.299811]
[1727456712572,0.53362532,66487.0,66486.0,0.300811]
[1727456712788,0.54162532,66487.0,66486.0,0.301811]
[1727456713005,0.53362532,66487.0,66486.0,0.300811]
[1727456713470,0.54162532,66487.0,66486.0,0.301811]
[1727456714678,0.56520637,66487.0,66486.0,0.301811]
[1727456714907,0.5601627,66487.0,66486.0,0.301811]
[1727456715134,0.38788605,66487.0,66486.0,0.301811]
[1727456715853,0.28898605,66487.0,66486.0,0.301811]
[1727456717039,0.265405,66487.0,66486.0,0.301811]
[1727456718218,0.266233,66487.0,66486.0,0.301811]
[1727456721709,0.166233,66487.0,66486.0,0.381811]
[1727456722406,0.159233,66487.0,66486.0,0.380811]
[1727456722863,0.151233,66487.0,66486.0,0.379811]
[1727456723104,0.152233,66487.0,66486.0,0.301811]
[1727456723787,0.152233,66487.0,66486.0,0.303811]
[1727456724252,0.152233,66487.0,66486.0,0.301811]
[1727456724486,0.153233,66487.0,66486.0,0.307811]
[1727456724966,0.152233,66487.0,66486.0,0.301811]
[1727456725878,0.151233,66487.0,66486.0,0.299811]
[1727456726319,0.37721702,66487.0,66486.0,0.299811]
[1727456726540,0.38145689,66487.0,66486.0,0.299811]
[1727456726768,0.37945689,66487.0,66486.0,0.299811]
[1727456727026,0.38345689,66487.0,66486.0,0.299811]
[1727456727270,0.60045689,66487.0,66486.0,0.299811]
[1727456727523,0.61045689,66487.0,66486.0,0.300811]
[1727456727763,0.60845689,66487.0,66486.0,0.300811]
[1727456727997,0.60845689,66487.0,66486.0,0.299811]
[1727456727998,0.59845689,66487.0,66486.0,0.299811]
[1727456728239,0.59645689,66487.0,66486.0,0.299811]
[1727456728468,0.61045689,66487.0,66486.0,0.300811]
[1727456728918,0.62645689,66487.0,66486.0,0.300811]
[1727456729159,0.590233,66487.0,66486.0,0.300811]
[1727456729677,0.62781596,66487.0,66486.0,0.300811]
[1727456729920,0.61381596,66487.0,66486.0,0.299811]
[1727456730391,0.62781596,66487.0,66486.0,0.299811]
[1727456730616,0.55781596,66487.0,66486.0,0.299811]
[1727456730869,0.356133,66487.0,66486.0,0.299811]
[1727456731097,0.367133,66487.0,66486.0,0.299811]
[1727456731316,0.48504265,66487.0,66486.0,0.299811]
[1727456731763,0.48704265,66487.0,66486.0,0.299811]
[1727456731996,0.48708265,66487.0,66486.0,0.299811]
[1727456732247,0.51108265,66487.0,66486.0,0.299811]
[1727456732475,0.49708265,66487.0,66486.0,0.299811]
[1727456732919,0.51108265,66487.0,66486.0,0.299811]
[1727456733142,0.50008265,66487.0,66486.0,0.299811]
[1727456733390,0.66828265,66487.0,66486.0,0.179215]
[1727456733622,0.65428265,66487.0,66486.0,0.149066]
[1727456733850,0.68086638,66487.0,66486.0,0.149066]
[1727456734067,0.68086638,66487.0,66486.0,0.118917]
[1727456734291,0.69486638,66487.0,66486.0,0.118917]
[1727456734713,0.68086638,66487.0,66486.0,0.118917]
[1727456734979,0.68086638,66487.0,66486.0,0.117917]
[1727456735191,0.66686638,66487.0,66486.0,0.117917]
[1727456735623,0.69486638,66487.0,66486.0,0.117917]
[1727456737005,0.67128265,66487.0,66486.0,0.087768]
[1727456738158,0.67128265,66487.0,66486.0,0.027468]
[1727456738396,0.67128265,66487.0,66485.0,0.001656]
[1727456738397,0.290407,66486.0,66485.0,0.001656]
[1727456738653,0.43869413,66486.0,66485.0,0.001656]
[1727456738862,0.43493303,66486.0,66485.0,0.001656]
[1727456739087,0.278432,66475.0,66474.0,0.001658]
[1727456739314,0.28219336,66475.0,66474.0,0.001658]
[1727456739534,0.38901116,66475.0,66474.0,0.001658]
[1727456739751,0.3852498,66475.0,66474.0,0.001658]
[1727456741038,0.3942498,66475.0,66474.0,0.001658]
[1727456741684,0.4062498,66475.0,66474.0,0.001658]
[1727456742076,0.4012498,66475.0,66474.0,0.001658]
[1727456743709,0.271432,66475.0,66474.0,0.001658]
[1727456744854,0.250432,66475.0,66474.0,0.001658]
[1727456745304,0.256432,66475.0,66474.0,0.001658]
[1727456746887,0.259432,66475.0,66474.0,0.001658]
[1727456747993,0.259432,66475.0,66474.0,0.234458]
[1727456751039,0.3756306,66475.0,66474.0,0.234458]
[1727456751911,0.3756306,66475.0,66474.0,0.001658]
[1727456752565,0.3986306,66475.0,66474.0,0.001658]
[1727456753009,0.4882306,66475.0,66474.0,0.001658]
[1727456753262,0.4982306,66475.0,66474.0,0.001658]
[1727456753921,0.4892306,66475.0,66474.0,0.001658]
[1727456754135,0.4982306,66475.0,66474.0,0.001658]
[1727456754352,0.5102306,66475.0,66474.0,0.001658]
[1727456754575,0.4982306,66475.0,66474.0,0.001658]
[1727456754782,0.51281984,66475.0,66474.0,0.001658]
[1727456755044,0.54081984,66475.0,66474.0,0.001658]
[1727456756831,0.5172306,66475.0,66474.0,0.001658]
[1727456759973,0.54082034,66475.0,66474.0,0.001658]
[1727456760688,0.54082034,66475.0,66474.0,1e-06]
[1727456760689,0.76735169,66475.0,66474.0,1e-06]
[1727456760935,0.005,66462.0,66461.0,0.0493694]
[1727456761103,0.54110007,66462.0,66461.0,0.0493694]
[1727456761315,0.54110007,66462.0,66456.0,4e-07]
[1727456761316,0.015,66457.0,66456.0,4e-07]
[1727456761528,0.015,66457.0,66437.0,0.1482]
[1727456761529,0.005,66444.0,66431.0,0.22653135]
[1727456761715,0.44578565,66441.0,66431.0,0.22653135]
[1727456761930,0.250532,66431.0,66430.0,0.0779]
[1727456762165,0.273536,66429.0,66428.0,0.00207851]
[1727456762378,0.28430016,66429.0,66428.0,0.00207851]
[1727456762616,0.29430025,66429.0,66428.0,0.00207851]
[1727456764507,0.30830025,66429.0,66428.0,0.00207851]
[1727456764728,0.4613866,66429.0,66428.0,0.00207851]
[1727456764942,0.42962235,66429.0,66428.0,0.00207851]
[1727456765378,0.44362235,66429.0,66428.0,0.00207851]
[1727456765595,0.46722851,66429.0,66428.0,0.00207851]
[1727456765823,0.48122851,66429.0,66428.0,0.00207851]
[1727456766777,0.48122851,66429.0,66417.0,0.001658]
[1727456766778,0.46283565,66419.0,66417.0,0.001658]
[1727456767435,0.46083565,66419.0,66417.0,0.001658]
[1727456768139,0.48883565,66419.0,66417.0,0.001658]
[1727456768421,0.306559,66419.0,66417.0,0.001658]
[1727456768634,0.273559,66419.0,66417.0,0.001658]
[1727456768842,0.301559,66419.0,66417.0,0.001658]
[1727456769051,0.33206042,66419.0,66417.0,0.001658]
[1727456769283,0.335296,66419.0,66417.0,0.001658]
[1727456769488,0.345296,66419.0,66417.0,0.001658]
[1727456769914,0.36890573,66419.0,66417.0,0.001658]
[1727456770137,0.37384799,66419.0,66417.0,0.001658]
[1727456770361,0.35023826,66419.0,66417.0,0.001658]
[1727456770803,0.35023826,66419.0,66418.0,2.6e-07]
[1727456771005,0.34123826,66419.0,66418.0,2.6e-07]
[1727456771223,0.35523826,66419.0,66418.0,2.6e-07]
[1727456771448,0.35023826,66419.0,66418.0,2.6e-07]
[1727456771954,0.290561,66418.0,66417.0,2.6e-07]
[1727456772183,0.41807216,66418.0,66417.0,2.6e-07]
[1727456772406,0.41430705,66418.0,66417.0,2.6e-07]
[1727456774163,0.44230705,66418.0,66417.0,2.6e-07]
[1727456774393,0.42830705,66418.0,66417.0,2.6e-07]
[1727456774625,0.44230705,66418.0,66417.0,2.6e-07]
[1727456776868,0.44030705,66418.0,66417.0,2.6e-07]
[1727456777819,0.43030705,66418.0,66417.0,2.6e-07]
[1727456778059,0.44030705,66418.0,66417.0,2.6e-07]
[1727456778278,0.44230705,66418.0,66417.0,2.6e-07]
[1727456778524,0.41430705,66418.0,66417.0,2.6e-07]
[1727456778751,0.42830705,66418.0,66417.0,2.6e-07]
[1727456778993,0.44230705,66418.0,66417.0,2.6e-07]
[1727456779459,0.6548384,66418.0,66417.0,2.6e-07]
[1727456779742,0.41430705,66418.0,66417.0,2.6e-07]
[1727456780684,0.42830705,66418.0,66417.0,2.6e-07]
[1727456781133,0.44230705,66418.0,66417.0,2.6e-07]
[1727456788117,0.44230705,66418.0,66407.0,0.001658]
[1727456788118,0.152584,66408.0,66407.0,0.001658]
[1727456788364,0.46662588,66408.0,66407.0,1e-06]
[1727456788587,0.46286065,66408.0,66407.0,1e-06]
[1727456788805,0.46286065,66408.0,66367.0,0.52788435]
[1727456788806,0.023,66397.0,66394.0,0.0491498]
[1727456789038,0.42288965,66395.0,66394.0,0.0491498]
[1727456789271,0.252616,66394.0,66393.0,0.0756]
[1727456789521,0.25438177,66394.0,66393.0,0.0756]
[1727456789767,0.25438177,66394.0,66393.0,0.0706]
[1727456791245,0.28038177,66394.0,66393.0,0.0706]
[1727456791470,0.42131421,66394.0,66393.0,0.0706]
[1727456791677,0.41754844,66394.0,66393.0,0.0706]
[1727456792570,0.250643,66382.0,66381.0,0.049577]
[1727456792783,0.42291965,66382.0,66381.0,0.129577]
[1727456792992,0.42291965,66382.0,66381.0,0.08]
[1727456792993,0.50823885,66382.0,66381.0,0.08]
[1727456793201,0.3359622,66382.0,66381.0,0.08]
[1727456794134,0.3379622,66382.0,66381.0,0.08]
[1727456794349,0.34288843,66382.0,66381.0,0.08]
[1727456796554,0.25756923,66382.0,66381.0,0.08]
[1727456797199,0.25556923,66382.0,66381.0,0.08]
[1727456797413,0.25756923,66382.0,66381.0,0.08]
[1727456798287,0.25756923,66382.0,66381.0,0.236]
[1727456798676,0.25556923,66382.0,66381.0,0.236]
[1727456798921,0.37150875,66382.0,66381.0,0.236]
[1727456799354,0.37150875,66382.0,66381.0,0.237]
[1727456799779,0.37150875,66382.0,66381.0,0.236]
[1727456800235,0.37150875,66382.0,66381.0,0.238]
[1727456800651,0.5980401,66382.0,66381.0,0.238]
[1727456800888,0.38709827,66382.0,66381.0,0.238]
[1727456802421,0.27115875,66382.0,66381.0,0.238]
[1727456802859,0.25556923,66382.0,66381.0,0.238]
[1727456803315,0.25556923,66382.0,66381.0,0.23966]
[1727456804885,0.10492623,66382.0,66381.0,0.23966]
[1727456805110,0.25556923,66382.0,66381.0,0.23966]
[1727456805337,0.25556923,66382.0,66381.0,0.30618064]
[1727456805545,0.25556923,66382.0,66381.0,0.30418064]
[1727456805546,0.00492623,66382.0,66381.0,0.30418064]
[1727456805755,0.001,66382.0,66381.0,0.30418064]
[1727456805978,0.101,66382.0,66381.0,0.30418064]
[1727456806183,0.101,66382.0,66381.0,0.23766]
[1727456806184,0.251643,66382.0,66381.0,0.23766]
[1727456806404,0.251643,66382.0,66381.0,0.24066]
[1727456806681,0.251643,66382.0,66381.0,0.28538016]
[1727456806858,0.250643,66382.0,66381.0,0.28238016]
[1727456807062,0.250643,66382.0,66381.0,0.28538016]
[1727456807063,0.251643,66382.0,66381.0,0.28538016]
[1727456807267,0.252643,66382.0,66381.0,0.24166]
[1727456807478,0.252643,66382.0,66381.0,0.76067024]
[1727456808136,0.252643,66382.0,66381.0,0.69359]
[1727456808355,0.252643,66382.0,66381.0,0.73835717]
[1727456808586,0.252643,66382.0,66381.0,0.76067024]
[1727456809231,0.252643,66382.0,66381.0,0.7383674]
[1727456810140,0.252643,66382.0,66381.0,0.69359]
[1727456810841,0.251643,66382.0,66381.0,0.69259]
[1727456811270,0.252643,66382.0,66381.0,0.69259]
[1727456811509,0.33757266,66382.0,66381.0,0.68959]
[1727456811740,0.33857266,66382.0,66381.0,0.69259]
[1727456812175,0.251643,66382.0,66381.0,0.69259]
[1727456812392,0.250643,66382.0,66381.0,0.68959]
[1727456812597,0.251643,66382.0,66381.0,0.69259]
[1727456813465,0.252643,66382.0,66381.0,0.69259]
[1727456813707,0.33767266,66382.0,66381.0,0.69259]
[1727456813958,0.35323374,66382.0,66381.0,0.69259]
[1727456814183,0.35323374,66382.0,66381.0,0.45659]
[1727456814423,0.35323374,66382.0,66381.0,0.46333005]
[1727456814660,0.35223374,66382.0,66381.0,0.46033005]
[1727456814888,0.37623374,66382.0,66381.0,0.46333005]
[1727456815122,0.38123374,66382.0,66381.0,0.46333005]
[1727456815347,0.38023374,66382.0,66381.0,0.46033005]
[1727456815801,0.38223374,66382.0,66381.0,0.46033005]
[1727456816288,0.38023374,66382.0,66381.0,0.46033005]
[1727456816501,0.38823374,66382.0,66381.0,0.46033005]
[1727456816725,0.38823374,66382.0,66381.0,0.45359]
[1727456816953,0.38323374,66382.0,66381.0,0.45359]
[1727456817168,0.39423374,66382.0,66381.0,0.4604536]
[1727456817384,0.37867266,66382.0,66381.0,0.4604536]
[1727456817624,0.39439255,66382.0,66381.0,0.4604536]
[1727456818527,0.40139255,66382.0,66381.0,0.4604536]
[1727456818988,0.40139255,66382.0,66381.0,0.45359]
[1727456819433,0.40139255,66382.0,66381.0,0.46099853]
[1727456820085,0.39939255,66382.0,66381.0,0.46099853]
[1727456820563,0.40139255,66382.0,66381.0,0.46099853]
[1727456821532,0.41139255,66382.0,66381.0,0.46099853]
[1727456822211,0.41139255,66382.0,66381.0,0.19386034]
[1727456822463,0.41139255,66382.0,66381.0,0.17738878]
[1727456822464,0.48709255,66382.0,66381.0,0.17738878]
[1727456822687,0.99131455,66382.0,66381.0,0.16998025]
[1727456822928,0.83176555,66382.0,66381.0,0.16998025]
[1727456823144,0.80504566,66382.0,66381.0,0.13818025]
[1727456823385,0.84443234,66382.0,66381.0,0.13818025]
[1727456823603,0.85843234,66382.0,66381.0,0.10798225]
[1727456823832,0.85843234,66382.0,66368.0,0.0491219]
[1727456823833,0.150672,66369.0,66368.0,0.0491219]
[1727456824064,0.54864703,66369.0,66368.0,0.0491219]
[1727456824291,0.250677,66367.0,66366.0,0.0026]
[1727456824537,0.25444429,66367.0,66366.0,0.0026]
[1727456824776,0.27022322,66367.0,66366.0,0.0026]
[1727456825484,0.29322322,66367.0,66366.0,0.0026]
[1727456825715,0.44555509,66367.0,66366.0,0.0026]
[1727456826173,0.4417878,66367.0,66366.0,0.0026]
[1727456826401,0.42600887,66367.0,66366.0,0.0026]
[1727456826624,0.29748111,66367.0,66366.0,0.0026]
[1727456827535,0.30241753,66367.0,66366.0,0.0026]
[1727456828468,0.29141753,66367.0,66366.0,0.0026]
[1727456828938,0.29141753,66367.0,66366.0,0.00426]
[1727456829859,0.3069874,66367.0,66366.0,0.00426]
[1727456830081,0.44256807,66367.0,66366.0,0.00426]
[1727456831697,0.3069874,66367.0,66366.0,0.00426]
[1727456831925,0.2069874,66367.0,66366.0,0.23656]
[1727456832435,0.1989874,66367.0,66366.0,0.24418123]
[1727456833120,0.2989874,66367.0,66366.0,0.24418123]
[1727456833350,0.41794619,66367.0,66366.0,0.24418123]
[1727456833836,0.41794619,66367.0,66366.0,0.23656]
[1727456834068,0.40594619,66367.0,66366.0,0.23656]
[1727456834292,0.40794619,66367.0,66366.0,0.23656]
[1727456834512,0.39694619,66367.0,66366.0,0.23656]
[1727456834757,0.39694619,66367.0,66366.0,0.23756]
[1727456834998,0.3812592,66367.0,66366.0,0.23756]
[1727456835924,0.27110455,66367.0,66366.0,0.23756]
[1727456836396,0.25661342,66367.0,66366.0,0.24518123]
[1727456838965,0.001,66367.0,66366.0,0.24518123]
[1727456839209,0.251677,66367.0,66366.0,0.24819444]
[1727456839476,0.101,66367.0,66366.0,0.24518123]
[1727456840224,0.101,66367.0,66366.0,0.24418123]
[1727456840462,0.001,66367.0,66366.0,0.24718123]
[1727456840695,0.1,66367.0,66366.0,0.24418123]
[1727456840928,0.1,66367.0,66366.0,0.24618123]
[1727456841175,0.251677,66367.0,66366.0,0.24918123]
[1727456841403,0.101,66367.0,66366.0,0.24718123]
[1727456841855,0.002,66367.0,66366.0,0.70423457]
[1727456842082,0.002,66367.0,66366.0,0.70122123]
[1727456843453,0.002,66367.0,66366.0,0.85190023]
[1727456843686,0.22653135,66372.0,66370.0,0.0811]
[1727456843914,0.00083,66394.0,66370.0,0.0811]
[1727456843915,0.301273,66385.0,66374.0,0.1463]
[1727456844168,0.301273,66385.0,66379.0,0.2274]
[1727456844387,0.301273,66385.0,66380.0,0.301293]
[1727456844614,0.150645,66381.0,66380.0,0.30879822]
[1727456845358,0.151645,66381.0,66380.0,0.30879822]
[1727456845591,0.251645,66381.0,66380.0,0.30879822]
[1727456845829,0.251645,66381.0,66380.0,0.31079822]
[1727456846957,0.250645,66381.0,66380.0,0.31079822]
[1727456847183,0.250645,66381.0,66380.0,0.31179822]
[1727456847443,0.2556381,66381.0,66380.0,0.31179822]
[1727456847973,0.0049931,66381.0,66380.0,0.31179822]
[1727456848415,0.250645,66381.0,66380.0,0.31179822]
[1727456848635,0.25046369,66381.0,66380.0,0.31179822]
[1727456850703,0.00083,66382.0,66380.0,0.31179822]
[1727456850940,0.00083,66382.0,66381.0,0.0030126]
[1727456851160,0.00083,66382.0,66381.0,0.60259]
[1727456851387,0.00083,66382.0,66381.0,0.76064353]